fUST/lending_fUST_20251115
["ID","MTS","AMOUNT","RATE_DAILY","PERIOD"]
[393997216,1763170267299,2400.0,0.0003892,120]
[393997217,1763170274429,2048.0,0.0003892,10]
[393997218,1763170279041,331.03425586,0.0003892,30]
[393997219,1763170279452,151.0,0.0003892,30]
[393997220,1763170280053,151.0,0.0003892,30]
[393997229,1763170486500,400.38245665,0.00032878,120]
[393997235,1763170666834,168.77210316,0.00038861,10]
[393997237,1763170671140,500.0,0.00038861,10]
[393997240,1763170773323,-300.4859184,0.00020901,2]
[393997241,1763170773459,-7302.56068908,0.00020901,2]
[393997242,1763170773532,-2096.47747412,0.00020901,2]
[393997247,1763170916563,-177.6501158,0.00020896,2]
[393997253,1763171022599,446.620484,0.00013699,2]
[393997254,1763171022824,446.620484,0.00020187,2]
[393997255,1763171056790,503.0,0.00020434,2]
[393997256,1763171093524,169.0,0.000204,2]
[393997258,1763171143106,-160.02580462,0.00021664,2]
[393997262,1763171245150,152.0,0.00038956,120]
[393997269,1763171409798,400.38245665,0.00032878,120]
[393997270,1763171415987,320.0,0.00038991,120]
[393997305,1763171432113,-150.0,0.00021727,2]
[393997306,1763171432124,-2958.84640947,0.0002177,2]
[393997308,1763171432133,-162.08989596,0.00021771,2]
[393997310,1763171432143,-501.29551036,0.00021773,2]
[393997312,1763171432152,-500.0,0.00021773,2]
[393997313,1763171432161,-196.0,0.00021788,2]
[393997315,1763171432170,-300.0,0.00021788,2]
[393997317,1763171432180,-1200.0,0.00021788,2]
[393997319,1763171432189,-117841.73003121,0.00021789,2]
[393997444,1763171437936,-772158.26996879,0.00021789,2]
[393997445,1763171437945,-150.0,0.0002183,2]
[393997446,1763171437954,-1200.0,0.0002187,2]
[393997447,1763171437963,-500.0,0.00021871,2]
[393997448,1763171437972,-571.91833556,0.00021871,2]
[393997449,1763171437981,-500.0,0.00021871,2]
[393997450,1763171437989,-500.0,0.00021871,2]
[393997451,1763171437998,-500.0,0.00021871,2]
[393997452,1763171438008,-500.0,0.00021871,2]
[393997453,1763171438017,-500.0,0.00021871,2]
[393997454,1763171438026,-641.96502611,0.00021871,2]
[393997455,1763171438037,-583.84249501,0.00021871,2]
[393997456,1763171438047,-500.0,0.00021871,2]
[393997457,1763171438058,-500.0,0.00021871,2]
[393997458,1763171438067,-500.0,0.00021871,2]
[393997459,1763171438076,-500.0,0.00021871,2]
[393997460,1763171438086,-424.40876454,0.00021871,2]
[393997461,1763171438097,-500.0,0.00021871,2]
[393997462,1763171438106,-210.50880746,0.00021871,2]
[393997463,1763171438116,-500.0,0.00021871,2]
[393997464,1763171438127,-500.0,0.00021871,2]
[393997465,1763171438136,-500.0,0.00021871,2]
[393997466,1763171438145,-500.0,0.00021871,2]
[393997467,1763171438155,-500.0,0.00021871,2]
[393997468,1763171438164,-500.0,0.00021871,2]
[393997469,1763171438173,-500.0,0.00021871,2]
[393997470,1763171438183,-500.0,0.00021871,2]
[393997471,1763171438193,-500.0,0.00021871,2]
[393997472,1763171438202,-500.0,0.00021871,2]
[393997473,1763171438211,-500.0,0.00021871,2]
[393997474,1763171438220,-500.0,0.00021871,2]
[393997475,1763171438229,-500.0,0.00021871,2]
[393997476,1763171438238,-500.0,0.00021871,2]
[393997477,1763171438248,-500.0,0.00021871,2]
[393997478,1763171438257,-500.0,0.00021871,2]
[393997479,1763171438266,-539.37763662,0.00021871,2]
[393997480,1763171438275,-50000.0,0.00021871,2]
[393997481,1763171438285,-27134.6529691,0.00021871,2]
[393997482,1763171438294,-500.0,0.00021873,2]
[393997483,1763171438304,-500.0,0.00021873,2]
[393997484,1763171438314,-500.79728517,0.00021873,2]
[393997485,1763171438323,-502.35986167,0.00021873,2]
[393997486,1763171438333,-503.04740363,0.00021873,2]
[393997487,1763171438343,-501.11411865,0.00021873,2]
[393997488,1763171438352,-514.39947114,0.00021873,2]
[393997489,1763171438361,-500.85199371,0.00021873,2]
[393997490,1763171438371,-501.01682425,0.00021873,2]
[393997491,1763171438380,-500.0,0.00021873,2]
[393997492,1763171438390,-500.0,0.00021873,2]
[393997493,1763171438399,-4116.61187986,0.00021873,2]
[393997494,1763171438410,-151.0,0.00021889,2]
[393997495,1763171438420,-151.0,0.00021889,2]
[393997496,1763171438429,-151.0,0.00021889,2]
[393997497,1763171438439,-151.0,0.00021889,2]
[393997498,1763171438448,-151.0,0.00021889,2]
[393997499,1763171438457,-151.0,0.00021889,2]
[393997500,1763171438466,-151.0,0.00021889,2]
[393997501,1763171438476,-151.0,0.00021889,2]
[393997502,1763171438485,-151.0,0.00021889,2]
[393997503,1763171438494,-151.0,0.00021889,2]
[393997504,1763171438504,-151.0,0.00021889,2]
[393997505,1763171438513,-180.20467411,0.00021889,2]
[393997506,1763171438522,-837.16,0.00021892,3]
[393997507,1763171438531,-500.0,0.000219,2]
[393997508,1763171438541,-171.68500501,0.000219,2]
[393997509,1763171438551,-500.0,0.00021901,2]
[393997510,1763171438561,-500.0,0.00021901,2]
[393997511,1763171438570,-500.0,0.00021901,2]
[393997512,1763171438580,-500.0,0.00021901,2]
[393997513,1763171438589,-500.0,0.00021901,2]
[393997514,1763171438599,-500.0,0.00021901,2]
[393997515,1763171438608,-500.0,0.00021901,2]
[393997516,1763171438618,-500.0,0.00021901,2]
[393997517,1763171438627,-500.0,0.00021901,2]
[393997518,1763171438636,-500.0,0.00021901,2]
[393997519,1763171438646,-500.0,0.00021901,2]
[393997520,1763171438655,-500.0,0.00021901,2]
[393997521,1763171438664,-500.0,0.00021901,2]
[393997522,1763171438673,-500.0,0.00021901,2]
[393997523,1763171438683,-500.0,0.00021901,2]
[393997524,1763171438692,-500.0,0.00021901,2]
[393997525,1763171438702,-500.0,0.00021901,2]
[393997526,1763171438711,-500.0,0.00021901,2]
[393997527,1763171438720,-480.77424759,0.00021901,2]
[393997528,1763171438730,-500.0,0.00021901,2]
[393997529,1763171438740,-436.07903327,0.00021901,2]
[393997530,1763171438750,-500.0,0.00021901,2]
[393997531,1763171438759,-238.6266457,0.00021901,2]
[393997532,1763171438769,-500.80298645,0.00021973,2]
[393997533,1763171438779,-500.79310865,0.00021973,2]
[393997534,1763171438788,-502.96448252,0.00021973,2]
[393997535,1763171438798,-501.54329375,0.00021973,2]
[393997536,1763171438808,-501.04462013,0.00021973,2]
[393997537,1763171438818,-501.29076547,0.00021973,2]
[393997538,1763171438828,-502.1401063,0.00021973,2]
[393997539,1763171438839,-500.0,0.00021973,2]
[393997540,1763171438850,-500.0,0.00021973,2]
[393997541,1763171438861,-501.86696439,0.00021973,2]
[393997542,1763171438871,-500.0,0.00021973,2]
[393997543,1763171438882,-500.0,0.00021973,2]
[393997544,1763171438892,-502.2374268,0.00021973,2]
[393997545,1763171438902,-500.0,0.00021973,2]
[393997546,1763171438912,-500.0,0.00021973,2]
[393997547,1763171438922,-500.0,0.00021973,2]
[393997548,1763171438932,-503.97428765,0.00021973,2]
[393997549,1763171438942,-480.19163699,0.00021989,2]
[393997550,1763171438952,-565.34867257,0.00021989,2]
[393997551,1763171438961,-259.26224942,0.0002199,2]
[393997552,1763171438972,-979.0,0.00022,2]
[393997553,1763171438981,-512.44042801,0.00022174,2]
[393997554,1763171438991,-1017.2317818,0.00022321,2]
[393997555,1763171439001,-600.0,0.00022337,20]
[393997556,1763171439011,-501.83390598,0.00022421,2]
[393997557,1763171439021,-501.64416043,0.00022421,2]
[393997558,1763171439031,-501.94432142,0.00022421,2]
[393997559,1763171439052,-1000.0,0.00022421,2]
[393997560,1763171439063,-1000.0,0.00022521,2]
[393997561,1763171439073,-503.55272892,0.00022521,2]
[393997562,1763171439083,-504.68130408,0.00022521,2]
[393997563,1763171439094,-503.04312465,0.00022521,2]
[393997564,1763171439104,-504.87245007,0.00022521,2]
[393997565,1763171439115,-199.83070065,0.00022521,2]
[393997566,1763171439126,-1000.0,0.00022521,2]
[393997567,1763171439136,-1500.0,0.00022968,2]
[393997568,1763171439146,-301.88257163,0.00023068,2]
[393997569,1763171439157,-1500.0,0.00023068,2]
[393997570,1763171439167,-381.25817386,0.00023394,4]
[393997571,1763171439177,-1461.78559704,0.00023419,2]
[393997572,1763171439187,-2022.05155295,0.00023516,2]
[393997573,1763171439196,-2000.0,0.00023616,2]
[393997574,1763171439206,-420.0,0.00023681,2]
[393997575,1763171439215,-837.0,0.00023769,2]
[393997576,1763171439225,-1680.0,0.00023793,2]
[393997577,1763171439235,-160.0,0.000239,2]
[393997578,1763171439244,-158.21454494,0.00023984,2]
[393997579,1763171439253,-151.0,0.00023984,2]
[393997580,1763171439263,-151.0,0.00023984,2]
[393997581,1763171439272,-500.0,0.00023984,2]
[393997582,1763171439282,-151.0,0.00023984,2]
[393997583,1763171439291,-152.33262979,0.00023984,2]
[393997584,1763171439300,-500.0,0.00023984,2]
[393997585,1763171439310,-515.0,0.00023984,2]
[393997586,1763171439319,-500.0,0.00023984,2]
[393997587,1763171439328,-500.0,0.00023984,2]
[393997588,1763171439338,-500.0,0.00023984,2]
[393997589,1763171439347,-151.0,0.00023984,2]
[393997590,1763171439356,-500.0,0.00023984,2]
[393997591,1763171439365,-151.0,0.00023984,2]
[393997592,1763171439375,-151.26971218,0.00023984,2]
[393997593,1763171439384,-500.0,0.00023984,2]
[393997594,1763171439393,-500.0,0.00023984,2]
[393997595,1763171439402,-500.0,0.00023984,2]
[393997596,1763171439411,-500.0,0.00023984,2]
[393997597,1763171439421,-500.0,0.00023984,2]
[393997598,1763171439431,-151.0,0.00023984,2]
[393997599,1763171439441,-500.0,0.00023984,2]
[393997600,1763171439450,-151.0,0.00023984,2]
[393997601,1763171439459,-152.88292978,0.00023984,2]
[393997602,1763171439468,-500.0,0.00023984,2]
[393997603,1763171439476,-500.0,0.00023984,2]
[393997604,1763171439486,-500.0,0.00023984,2]
[393997605,1763171439495,-500.0,0.00023984,2]
[393997606,1763171439504,-500.0,0.00023984,2]
[393997607,1763171439513,-151.0,0.00023984,2]
[393997608,1763171439522,-813.0,0.00023984,2]
[393997609,1763171439531,-500.0,0.00023984,2]
[393997610,1763171439541,-1799.0,0.00023984,2]
[393997611,1763171439550,-611.0,0.00023984,2]
[393997612,1763171439559,-151.2356779,0.00023984,2]
[393997613,1763171439569,-151.0,0.00023984,2]
[393997614,1763171439578,-1525.03269543,0.0002406,4]
[393997615,1763171439588,-151.0,0.00024121,2]
[393997616,1763171439597,-151.0,0.00024121,2]
[393997617,1763171439606,-500.0,0.00024121,2]
[393997618,1763171439615,-151.0,0.00024121,2]
[393997619,1763171439624,-500.0,0.00024121,2]
[393997620,1763171439633,-515.0,0.00024121,2]
[393997621,1763171439642,-500.0,0.00024121,2]
[393997622,1763171439652,-500.0,0.00024121,2]
[393997623,1763171439661,-500.0,0.00024121,2]
[393997624,1763171439670,-151.0,0.00024121,2]
[393997625,1763171439680,-501.10826577,0.00024121,2]
[393997626,1763171439689,-151.0,0.00024121,2]
[393997627,1763171439699,-500.0,0.00024121,2]
[393997628,1763171439708,-500.0,0.00024121,2]
[393997629,1763171439717,-500.0,0.00024121,2]
[393997630,1763171439726,-500.0,0.00024121,2]
[393997631,1763171439735,-500.0,0.00024121,2]
[393997632,1763171439744,-283.66178978,0.00024121,2]
[393997633,1763171439753,-500.0,0.00024121,2]
[393997634,1763171439762,-151.0,0.00024121,2]
[393997636,1763171439771,-500.0,0.00024121,2]
[393997638,1763171439780,-500.0,0.00024121,2]
[393997640,1763171439789,-500.0,0.00024121,2]
[393997642,1763171439798,-500.0,0.00024121,2]
[393997644,1763171439807,-550.35616939,0.00024121,2]
[393997647,1763171439820,-813.0,0.00024121,2]
[393997649,1763171439831,-500.0,0.00024121,2]
[393997651,1763171439843,-1799.0,0.00024121,2]
[393997653,1763171439854,-611.0,0.00024121,2]
[393997655,1763171439864,-155.64194029,0.00024121,2]
[393997657,1763171439873,-2500.0,0.00024164,2]
[393997659,1763171439884,-767.11303458,0.00024236,4]
[393997661,1763171439893,-151.0,0.00024258,2]
[393997663,1763171439904,-231.4868654,0.00024258,2]
[393997665,1763171439913,-500.0,0.00024258,2]
[393997668,1763171439924,-204.40965187,0.00024258,2]
[393997671,1763171439935,-500.0,0.00024258,2]
[393997673,1763171439945,-515.0,0.00024258,2]
[393997675,1763171439955,-500.0,0.00024258,2]
[393997677,1763171439965,-500.0,0.00024258,2]
[393997679,1763171439974,-500.0,0.00024258,2]
[393997680,1763171439983,-151.0,0.00024258,2]
[393997682,1763171439992,-151.0,0.00024258,2]
[393997684,1763171440001,-500.0,0.00024258,2]
[393997687,1763171440011,-500.0,0.00024258,2]
[393997689,1763171440020,-500.0,0.00024258,2]
[393997691,1763171440029,-500.0,0.00024258,2]
[393997692,1763171440041,-500.0,0.00024258,2]
[393997694,1763171440051,-500.0,0.00024258,2]
[393997697,1763171440060,-190.70567027,0.00024258,2]
[393997699,1763171440069,-500.0,0.00024258,2]
[393997700,1763171440078,-500.0,0.00024258,2]
[393997702,1763171440090,-500.0,0.00024258,2]
[393997704,1763171440099,-500.0,0.00024258,2]
[393997705,1763171440109,-813.0,0.00024258,2]
[393997706,1763171440118,-500.0,0.00024258,2]
[393997707,1763171440127,-1799.0,0.00024258,2]
[393997708,1763171440137,-611.0,0.00024258,2]
[393997709,1763171440145,-156.72360121,0.00024395,2]
[393997710,1763171440155,-500.0,0.00024395,2]
[393997711,1763171440164,-500.0,0.00024395,2]
[393997712,1763171440173,-515.0,0.00024395,2]
[393997713,1763171440182,-292.23709945,0.00024395,2]
[393997714,1763171440192,-500.0,0.00024395,2]
[393997715,1763171440200,-500.0,0.00024395,2]
[393997716,1763171440210,-225.83817913,0.00024395,2]
[393997717,1763171440219,-151.0,0.00024395,2]
[393997718,1763171440228,-500.0,0.00024395,2]
[393997719,1763171440237,-500.0,0.00024395,2]
[393997720,1763171440246,-500.0,0.00024395,2]
[393997721,1763171440255,-338.20797292,0.00024395,2]
[393997722,1763171440265,-500.0,0.00024395,2]
[393997723,1763171440273,-500.0,0.00024395,2]
[393997724,1763171440285,-400.44486237,0.00024395,2]
[393997725,1763171440294,-516.14385696,0.00024395,2]
[393997726,1763171440303,-500.0,0.00024395,2]
[393997727,1763171440312,-500.0,0.00024395,2]
[393997728,1763171440321,-813.0,0.00024395,2]
[393997729,1763171440330,-608.49725622,0.00024395,2]
[393997730,1763171440340,-1799.0,0.00024395,2]
[393997731,1763171440349,-611.0,0.00024395,2]
[393997732,1763171440358,-260.0,0.00024448,2]
[393997733,1763171440367,-500.0,0.00024532,2]
[393997734,1763171440376,-196.66275666,0.00024532,2]
[393997735,1763171440385,-515.0,0.00024532,2]
[393997736,1763171440394,-500.0,0.00024532,2]
[393997737,1763171440403,-500.0,0.00024532,2]
[393997738,1763171440413,-298.64944631,0.00024532,2]
[393997739,1763171440422,-500.0,0.00024532,2]
[393997740,1763171440432,-157.85829881,0.00024532,2]
[393997741,1763171440584,-500.0,0.00024532,2]
[393997742,1763171440595,-500.0,0.00024532,2]
[393997743,1763171440604,-500.0,0.00024532,2]
[393997744,1763171440614,-511.6600539,0.00024532,2]
[393997745,1763171440623,-500.0,0.00024532,2]
[393997746,1763171440633,-813.0,0.00024532,2]
[393997747,1763171440643,-1799.0,0.00024532,2]
[393997748,1763171440652,-611.0,0.00024532,2]
[393997749,1763171440661,-720.0,0.00024571,20]
[393997750,1763171440670,-151.0,0.000246,8]
[393997751,1763171440680,-500.0,0.00024658,2]
[393997752,1763171440690,-500.0,0.00024669,2]
[393997753,1763171440699,-515.0,0.00024669,2]
[393997754,1763171440708,-500.0,0.00024669,2]
[393997755,1763171440718,-152.53097532,0.00024669,2]
[393997756,1763171440727,-500.0,0.00024669,2]
[393997757,1763171440737,-500.0,0.00024669,2]
[393997758,1763171440746,-500.0,0.00024669,2]
[393997759,1763171440756,-500.0,0.00024669,2]
[393997760,1763171440765,-500.0,0.00024669,2]
[393997761,1763171440775,-813.0,0.00024669,2]
[393997762,1763171440786,-1799.0,0.00024669,2]
[393997763,1763171440797,-611.0,0.00024669,2]
[393997764,1763171440806,-1910.47213521,0.00024712,2]
[393997765,1763171440816,-500.0,0.00024795,2]
[393997766,1763171440825,-500.0,0.00024806,2]
[393997767,1763171440835,-515.0,0.00024806,2]
[393997768,1763171440849,-500.0,0.00024806,2]
[393997769,1763171440859,-171.60734707,0.00024806,2]
[393997770,1763171440868,-186.41687856,0.00024806,2]
[393997771,1763171440879,-500.0,0.00024806,2]
[393997772,1763171440889,-429.03709104,0.00024806,2]
[393997773,1763171440898,-500.0,0.00024806,2]
[393997774,1763171440908,-813.0,0.00024806,2]
[393997775,1763171440917,-1799.0,0.00024806,2]
[393997776,1763171440926,-611.0,0.00024806,2]
[393997777,1763171440936,-500.0,0.00024873,2]
[393997778,1763171440946,-500.56604722,0.00024873,2]
[393997779,1763171440955,-502.63931033,0.00024873,2]
[393997780,1763171440964,-501.1299011,0.00024873,2]
[393997781,1763171440974,-150.0,0.00024873,2]
[393997782,1763171440983,-353.994393,0.000249,2]
[393997783,1763171440992,-329816.428651,0.000249,2]
[393997784,1763171441001,-151.0,0.000249,7]
[393997785,1763171441010,-151.0,0.000249,7]
[393997786,1763171441019,-151.757969,0.000249,7]
[393997787,1763171441028,-3068.4521383,0.00024922,4]
[393997788,1763171441038,-313.20185734,0.00024932,2]
[393997789,1763171441047,-500.0,0.00024943,2]
[393997790,1763171441059,-515.0,0.00024943,2]
[393997791,1763171441068,-500.0,0.00024943,2]
[393997792,1763171441077,-500.0,0.00024943,2]
[393997793,1763171441087,-500.0,0.00024943,2]
[393997794,1763171441099,-813.0,0.00024943,2]
[393997795,1763171441109,-1799.0,0.00024943,2]
[393997796,1763171441118,-611.0,0.00024943,2]
[393997797,1763171441127,-360.0,0.00024996,2]
[393997798,1763171441136,-769.27518768,0.00025037,2]
[393997799,1763171441145,-373.35590057,0.0002508,2]
[393997800,1763171441155,-515.0,0.0002508,2]
[393997801,1763171441164,-500.0,0.0002508,2]
[393997802,1763171441173,-500.0,0.0002508,2]
[393997803,1763171441182,-500.0,0.0002508,2]
[393997804,1763171441191,-813.0,0.0002508,2]
[393997805,1763171441200,-1799.0,0.0002508,2]
[393997806,1763171441209,-611.0,0.0002508,2]
[393997807,1763171441218,-2430.1775381,0.0002515,2]
[393997808,1763171441228,-769.27518768,0.00025161,2]
[393997809,1763171441237,-515.0,0.00025217,2]
[393997810,1763171441246,-500.0,0.00025217,2]
[393997811,1763171441255,-500.0,0.00025217,2]
[393997812,1763171441264,-500.0,0.00025217,2]
[393997813,1763171441273,-813.0,0.00025217,2]
[393997814,1763171441282,-1799.0,0.00025217,2]
[393997815,1763171441291,-611.0,0.00025217,2]
[393997816,1763171441301,-769.27518768,0.00025286,2]
[393997817,1763171441310,-515.0,0.00025354,2]
[393997818,1763171441318,-337.33619941,0.00025354,2]
[393997819,1763171441327,-500.0,0.00025354,2]
[393997820,1763171441336,-500.0,0.00025354,2]
[393997821,1763171441348,-813.0,0.00025354,2]
[393997822,1763171441358,-1799.0,0.00025354,2]
[393997823,1763171441367,-611.0,0.00025354,2]
[393997824,1763171441376,-769.27518768,0.0002541,2]
[393997825,1763171441385,-218.98728973,0.00025421,2]
[393997826,1763171441395,-151.18791006,0.00025421,2]
[393997827,1763171441404,-515.0,0.00025491,2]
[393997828,1763171441414,-500.0,0.00025491,2]
[393997829,1763171441423,-500.0,0.00025491,2]
[393997830,1763171441432,-813.0,0.00025491,2]
[393997831,1763171441441,-1799.0,0.00025491,2]
[393997832,1763171441450,-611.0,0.00025491,2]
[393997833,1763171441459,-769.27518768,0.00025535,2]
[393997834,1763171441469,-460.0,0.00025544,2]
[393997835,1763171441480,-515.0,0.00025628,2]
[393997836,1763171441489,-560.54678396,0.00025628,2]
[393997837,1763171441498,-500.0,0.00025628,2]
[393997838,1763171441508,-813.0,0.00025628,2]
[393997839,1763171441517,-1799.0,0.00025628,2]
[393997840,1763171441526,-611.0,0.00025628,2]
[393997841,1763171441535,-769.27518768,0.00025659,2]
[393997842,1763171441545,-246.0,0.000257,2]
[393997843,1763171441554,-587.0,0.00025739,2]
[393997844,1763171441564,-515.0,0.00025765,2]
[393997845,1763171441573,-500.0,0.00025765,2]
[393997846,1763171441583,-813.0,0.00025765,2]
[393997847,1763171441598,-1799.0,0.00025765,2]
[393997848,1763171441608,-611.0,0.00025765,2]
[393997849,1763171441618,-770.04446287,0.00025784,2]
[393997850,1763171441628,-515.0,0.00025902,2]
[393997851,1763171441637,-500.0,0.00025902,2]
[393997852,1763171441648,-813.0,0.00025902,2]
[393997853,1763171441659,-1799.0,0.00025902,2]
[393997854,1763171441670,-611.0,0.00025902,2]
[393997855,1763171441680,-2035.0,0.00025982,2]
[393997856,1763171441689,-500.0,0.00026027,2]
[393997857,1763171441699,-521.7351197,0.00026027,2]
[393997858,1763171441708,-515.0,0.00026039,2]
[393997859,1763171441718,-500.0,0.00026039,2]
[393997860,1763171441727,-813.0,0.00026039,2]
[393997861,1763171441736,-1799.0,0.00026039,2]
[393997862,1763171441746,-611.0,0.00026039,2]
[393997863,1763171441755,-560.0,0.00026092,2]
[393997864,1763171441765,-515.0,0.00026176,2]
[393997865,1763171441775,-297.75364817,0.00026176,2]
[393997866,1763171441784,-813.0,0.00026176,2]
[393997867,1763171441794,-1799.0,0.00026176,2]
[393997868,1763171441804,-611.0,0.00026176,2]
[393997869,1763171441813,-515.0,0.00026313,2]
[393997870,1763171441822,-813.0,0.00026313,2]
[393997871,1763171441831,-1799.0,0.00026313,2]
[393997872,1763171441845,-611.0,0.00026313,2]
[393997873,1763171441854,-515.0,0.0002645,2]
[393997874,1763171441863,-813.0,0.0002645,2]
[393997875,1763171441872,-1799.0,0.0002645,2]
[393997876,1763171441882,-611.0,0.0002645,2]
[393997877,1763171441891,-515.0,0.00026587,2]
[393997878,1763171441901,-813.0,0.00026587,2]
[393997879,1763171441910,-1799.0,0.00026587,2]
[393997880,1763171441920,-611.0,0.00026587,2]
[393997881,1763171441931,-660.0,0.0002664,2]
[393997882,1763171441947,-446.620484,0.00026676,2]
[393997883,1763171441957,-515.0,0.00026724,2]
[393997884,1763171441967,-813.0,0.00026724,2]
[393997885,1763171441976,-1799.0,0.00026724,2]
[393997886,1763171441985,-611.0,0.00026724,2]
[393997887,1763171441994,-515.0,0.00026861,2]
[393997888,1763171442003,-813.0,0.00026861,2]
[393997889,1763171442013,-1799.0,0.00026861,2]
[393997890,1763171442023,-611.0,0.00026861,2]
[393997891,1763171442032,-1163.39825774,0.0002691,2]
[393997892,1763171442045,-2958.84640946,0.00026943,2]
[393997893,1763171442054,-515.0,0.00026998,2]
[393997894,1763171442064,-813.0,0.00026998,2]
[393997895,1763171442073,-1799.0,0.00026998,2]
[393997896,1763171442082,-611.0,0.00026998,2]
[393997897,1763171442094,-864.0,0.00027028,30]
[393997898,1763171442103,-531.67480175,0.00027135,2]
[393997899,1763171442112,-822.9537278,0.00027135,2]
[393997900,1763171442124,-1814.4899648,0.00027135,2]
[393997901,1763171442133,-620.93405432,0.00027135,2]
[393997902,1763171442142,-760.0,0.00027188,2]
[393997903,1763171442151,-200.0,0.000274,2]
[393997904,1763171442160,-2430.1775381,0.00027538,2]
[393997905,1763171442169,-160.0,0.00027546,2]
[393997906,1763171442179,-3078.87,0.000276,2]
[393997907,1763171442188,-860.0,0.00027736,2]
[393997908,1763171442197,-1163.39825774,0.00027891,7]
[393997909,1763171442206,-4100.95937954,0.00027956,2]
[393997910,1763171442215,-823.0,0.00027976,2]
[393997911,1763171442224,-1071.74946453,0.00028284,2]
[393997912,1763171442232,-176.05430552,0.00028941,2]
[393997913,1763171442240,-293.9149908,0.00029201,2]
[393997914,1763171442250,-1000.0,0.00029731,30]
[393997915,1763171442259,-2430.1775381,0.00029926,2]
[393997916,1763171442268,-2000.0,0.0003,7]
[393997917,1763171442278,-335.34674223,0.00030131,2]
[393997918,1763171442287,-740.96145385,0.00030131,2]
[393997919,1763171442296,-1333.73061693,0.00030131,2]
[393997920,1763171442305,-2371.07665233,0.00030131,2]
[393997921,1763171442314,-3701.10246199,0.00030131,2]
[393997922,1763171442323,-675.14468287,0.00030131,2]
[393997923,1763171442332,-1215.26042917,0.00030131,2]
[393997924,1763171442342,-2158.30252221,0.00030131,2]
[393997925,1763171442351,-182.9014017,0.00030131,2]
[393997926,1763171442360,-500.0,0.00030137,2]
[393997927,1763171442369,-500.0,0.00030274,2]
[393997928,1763171442378,-551.0,0.00030407,2]
[393997929,1763171442387,-500.0,0.00030411,2]
[393997930,1763171442396,-176.05430551,0.00030464,30]
[393997931,1763171442405,-352.1086111,0.00030523,2]
[393997932,1763171442415,-230.4619779,0.00030523,2]
[393997933,1763171442424,-500.0,0.00030548,2]
[393997934,1763171442433,-500.0,0.00030685,2]
[393997935,1763171442442,-500.0,0.00030822,2]
[393997936,1763171442451,-352.1086111,0.00030885,9]
[393997937,1763171442461,-500.0,0.00030959,2]
[393997938,1763171442470,-500.0,0.00031096,2]
[393997939,1763171442479,-500.0,0.00031233,2]
[393997940,1763171442488,-352.1086111,0.00031246,17]
[393997941,1763171442497,-500.0,0.0003137,2]
[393997942,1763171442507,-174.88232512,0.00031399,10]
[393997943,1763171442516,-500.0,0.00031507,2]
[393997944,1763171442525,-377.9295775,0.00031582,30]
[393997945,1763171442534,-352.1086111,0.00031607,25]
[393997946,1763171442543,-396.30218732,0.00031644,2]
[393997947,1763171442552,-352.1086111,0.00031969,32]
[393997948,1763171442561,-353.994393,0.00031996,2]
[393997949,1763171442569,-10000.0,0.00032109,10]
[393997951,1763171442578,-10000.0,0.00032223,10]